bitfinex-derivatives/quotes_ETHF0:USTF0_20230105
["timestamp","ask_amount","ask_price","bid_price","bid_amount"]
[1672952758160,10.2740932,1253.9,1253.8,1.19507926]
[1672952758788,10.2740932,1253.9,1253.8,4.40287926]
[1672952758998,10.2740932,1253.9,1253.8,1.19507926]
[1672952759209,10.2740932,1253.9,1253.8,4.40287926]
[1672952759842,10.2740932,1253.9,1253.8,1.19507926]
[1672952760051,10.2740932,1253.9,1253.8,4.40287926]
[1672952761524,6.08945789,1253.9,1253.8,4.40287926]
[1672952762154,10.2740932,1253.9,1253.8,4.40287926]
[1672952762467,6.08945789,1253.9,1253.8,4.40287926]
[1672952762666,3.58945789,1253.9,1253.8,4.40287926]
[1672952762876,3.58945789,1253.9,1253.8,6.18978866]
[1672952763091,4.18463531,1254.0,1253.8,4.9947094]
[1672952763092,7.7740932,1254.0,1253.8,4.9947094]
[1672952763302,7.7740932,1254.0,1253.9,3.6949004]
[1672952764255,7.7740932,1254.0,1253.9,5.7078]
[1672952765517,7.77297663,1254.0,1253.9,5.7078]
[1672952766041,4.18463531,1254.0,1253.9,5.7078]
[1672952766357,7.77266853,1254.0,1253.9,5.7078]
[1672952768982,3.58803322,1254.0,1253.9,5.7078]
[1672952769607,7.77266853,1254.0,1253.9,5.7078]
[1672952770029,7.77266853,1254.0,1253.9,3.2078]
[1672952770558,3.58803322,1254.0,1253.9,3.2078]
[1672952771290,3.58803322,1254.0,1253.9,2.5]
[1672952771504,3.58803322,1254.0,1253.9,5.7078]
[1672952772873,4.18463531,1254.0,1253.9,5.7078]
[1672952774021,4.18463531,1254.0,1253.9,3.2078]
[1672952776448,5.93534253,1254.0,1253.7,5.47740348]
[1672952776658,6.08731252,1253.9,1253.8,3.2078]
[1672952779806,6.08731252,1253.9,1253.7,5.47740348]
[1672952780018,6.08731252,1253.9,1253.8,3.2078]
[1672952781068,10.27194783,1253.9,1253.8,3.2078]
[1672952781279,6.08731252,1253.9,1253.7,3.69049408]
[1672952781490,6.08731252,1253.9,1253.8,3.2078]
[1672952782118,10.27194783,1253.9,1253.8,3.2078]
[1672952784011,10.26758395,1253.9,1253.8,3.2078]
[1672952784216,6.68027143,1253.9,1253.8,3.2078]
[1672952784427,10.26737851,1253.9,1253.8,3.2078]
[1672952784746,6.68027143,1253.9,1253.8,3.2078]
[1672952786636,6.68027143,1253.9,1253.7,6.89829408]
[1672952786843,3.58692677,1253.8,1253.7,6.89829408]
[1672952787580,10.2671982,1253.9,1253.7,6.89829408]
[1672952788943,10.2671982,1253.9,1253.7,4.4027004]
[1672952789575,3.58692677,1253.8,1253.7,4.4027004]
[1672952789892,3.58692677,1253.8,1253.7,3.2078]
[1672952790418,3.58692677,1253.8,1253.7,4.4027004]
[1672952790833,3.58692677,1253.8,1253.7,3.2078]
[1672952791889,3.58692677,1253.8,1253.6,5.4818098]
[1672952792204,3.58692677,1253.8,1253.7,3.2078]
[1672952793257,3.58692677,1253.8,1253.6,5.4818098]
[1672952793461,3.58692677,1253.8,1253.7,3.2078]
[1672952793672,10.2671982,1253.9,1253.7,4.4027004]
[1672952794830,10.2671982,1253.9,1253.7,1.1949004]
[1672952795039,10.2671982,1253.9,1253.7,4.4027004]
[1672952796510,10.2671982,1253.9,1253.7,3.2078]
[1672952797457,10.2671982,1253.9,1253.7,4.4027004]
[1672952799552,6.08256289,1253.9,1253.7,4.4027004]
[1672952799973,6.08256289,1253.9,1253.8,3.2078]
[1672952800399,10.2671982,1253.9,1253.7,4.4027004]
[1672952800609,6.08256289,1253.9,1253.7,4.4027004]
[1672952800821,6.08256289,1253.9,1253.7,1.1949004]
[1672952801021,6.08256289,1253.9,1253.7,4.4027004]
[1672952801446,6.08256289,1253.9,1253.7,3.2078]
[1672952801653,10.2671982,1253.9,1253.7,3.2078]
[1672952801867,3.58692677,1253.8,1253.7,3.2078]
[1672952804710,3.58692677,1253.8,1253.6,5.4818098]
[1672952804922,3.58692677,1253.8,1253.7,3.2078]
[1672952808801,7.77156208,1254.0,1253.7,12.9787094]
[1672952809018,3.58692677,1254.0,1253.9,3.2078]
[1672952809225,3.58692677,1254.0,1253.9,5.7078]
[1672952810381,3.58692677,1254.0,1253.9,2.5]
[1672952810592,3.58692677,1254.0,1253.9,5.7078]
[1672952811855,3.58692677,1254.0,1253.9,2.5]
[1672952812063,3.58692677,1254.0,1253.9,5.7078]
[1672952814799,3.58692677,1254.0,1253.9,2.5]
[1672952815014,3.58692677,1254.0,1253.9,5.7078]
[1672952815210,3.58692677,1254.0,1253.9,2.5]
[1672952815425,3.58692677,1254.0,1253.9,5.7078]
[1672952815957,10.27156208,1254.1,1253.9,5.7078]
[1672952816366,6.08692677,1254.1,1253.9,5.7078]
[1672952817218,6.08692677,1254.1,1253.9,2.5]
[1672952817421,6.08692677,1254.1,1254.0,3.2078]
[1672952818053,3.58692677,1254.1,1254.0,3.2078]
[1672952818996,6.08692677,1254.1,1254.0,3.2078]
[1672952819207,3.58692677,1254.1,1254.0,3.2078]
[1672952821420,6.08692677,1254.1,1254.0,3.2078]
[1672952822156,6.08692677,1254.1,1253.9,2.5]
[1672952822358,6.08692677,1254.1,1254.0,3.2078]
[1672952824572,6.68463531,1254.1,1254.0,3.2078]
[1672952825204,6.68463531,1254.1,1253.9,2.5]
[1672952825410,3.58253326,1254.0,1253.9,5.7078]
[1672952825619,6.08253326,1254.1,1253.9,5.7078]
[1672952827724,6.08253326,1254.1,1254.0,3.2078]
[1672952828671,6.08253326,1254.1,1253.9,2.5]
[1672952828880,6.08253326,1254.1,1254.0,3.2078]
[1672952829098,2.5,1254.1,1254.0,3.2078]
[1672952829407,21.34916857,1254.2,1254.0,3.2078]
[1672952829608,7.76716857,1254.2,1254.0,3.2078]
[1672952829819,2.5,1254.1,1254.0,3.2078]
[1672952830346,6.08253326,1254.1,1254.0,3.2078]
[1672952832766,6.08253326,1254.1,1253.9,2.5]
[1672952832984,6.08253326,1254.1,1254.0,3.2078]
[1672952833291,6.08253326,1254.1,1253.9,2.5]
[1672952833502,6.08253326,1254.1,1254.0,3.2078]
[1672952834551,3.58253326,1254.1,1254.0,3.2078]
[1672952835088,10.26716857,1254.2,1254.0,3.2078]
[1672952835397,6.08253326,1254.2,1254.0,3.2078]
[1672952835922,10.26716857,1254.2,1254.0,3.2078]
[1672952836449,10.26716857,1254.2,1254.1,3.2078]
[1672952837811,10.26716857,1254.2,1253.9,2.5]
[1672952838031,2.5,1254.1,1254.0,3.2078]
[1672952839181,6.08253326,1254.1,1254.0,3.2078]
[1672952841482,6.08253326,1254.1,1253.9,2.5]
[1672952841699,6.08253326,1254.1,1254.0,3.2078]
[1672952844856,6.08253326,1254.1,1253.9,2.5]
[1672952845064,10.26716857,1254.1,1253.9,5.7078]
[1672952846011,10.26716857,1254.1,1254.0,3.2078]
[1672952846640,6.68463531,1254.1,1254.0,3.2078]
[1672952846853,6.68463531,1254.1,1253.9,2.5]
[1672952847064,3.5855079,1254.0,1253.9,5.7078]
[1672952847589,3.5855079,1254.0,1253.9,2.5]
[1672952847800,3.5855079,1254.0,1253.9,5.7078]
[1672952848220,10.27014321,1254.1,1253.9,5.7078]
[1672952848432,3.5855079,1254.0,1253.9,6.90140185]
[1672952849897,3.5855079,1254.0,1253.9,4.40140185]
[1672952850113,3.5855079,1254.0,1253.9,3.2078]
[1672952851164,7.77014321,1254.0,1253.9,3.2078]
[1672952851580,3.5855079,1254.0,1253.9,3.2078]
[1672952852111,7.77014321,1254.0,1253.9,3.2078]
[1672952852316,3.5855079,1254.0,1253.9,3.2078]
[1672952854213,7.77014321,1254.0,1253.9,3.2078]
[1672952855371,3.5855079,1254.0,1253.9,3.2078]
[1672952855881,7.77014321,1254.0,1253.9,3.2078]
[1672952856631,4.18463531,1254.0,1253.9,3.2078]
[1672952858831,7.77155394,1254.0,1253.9,3.2078]
[1672952859564,3.58691863,1254.0,1253.9,3.2078]
[1672952862204,10.27155394,1254.1,1253.9,4.40140185]
[1672952862622,6.08691863,1254.1,1253.9,4.40140185]
[1672952863674,6.08691863,1254.1,1254.0,3.2078]
[1672952863883,6.08691863,1254.1,1254.0,3.20118763]
[1672952864094,6.68463531,1254.1,1254.0,3.20118763]
[1672952864506,6.68463531,1254.1,1253.9,4.40140185]
[1672952864724,3.5867516,1254.0,1253.9,4.40140185]
[1672952865147,3.5867516,1254.0,1253.9,3.2078]
[1672952865672,3.5867516,1254.0,1253.9,4.40140185]
[1672952865988,3.5867516,1254.0,1253.9,3.2078]
[1672952867560,3.5867516,1254.0,1253.8,5.48051125]
[1672952867781,3.5867516,1254.0,1253.9,6.90140185]
[1672952869140,10.27138691,1254.1,1253.9,6.90140185]
[1672952869554,10.27138691,1254.1,1254.0,2.5]
[1672952870294,10.27138691,1254.1,1254.0,5.7078]
[1672952871976,7.77138691,1254.1,1254.0,5.7078]
[1672952872188,3.5867516,1254.1,1254.0,5.7078]
[1672952875350,3.5867516,1254.1,1254.0,2.5]
[1672952875561,3.5867516,1254.1,1254.0,5.7078]
[1672952877763,3.5867516,1254.1,1254.0,2.5]
[1672952878077,3.5867516,1254.1,1254.0,5.7078]
[1672952880497,7.77138691,1254.1,1254.0,5.7078]
[1672952880708,3.5867516,1254.1,1254.0,5.7078]
[1672952881437,7.77138691,1254.1,1254.0,5.7078]
[1672952883863,7.77138691,1254.1,1254.0,2.5]
[1672952884075,7.77138691,1254.1,1254.0,5.7078]
[1672952885548,3.5867516,1254.1,1254.0,5.7078]
[1672952887014,3.5867516,1254.1,1254.0,2.5]
[1672952887222,3.5867516,1254.1,1254.0,5.7078]
[1672952887951,7.77138691,1254.2,1254.0,6.90140185]
[1672952888166,3.5867516,1254.1,1254.0,6.90140185]
[1672952888485,6.0867516,1254.1,1254.0,6.90140185]
[1672952888696,7.77138691,1254.2,1254.0,6.90140185]
[1672952888902,10.27138691,1254.2,1254.0,6.90140185]
[1672952889113,6.0867516,1254.2,1254.0,6.90140185]
[1672952889428,10.27138691,1254.2,1254.0,6.90140185]
[1672952889638,6.0867516,1254.2,1254.0,6.90140185]
[1672952890068,10.27138691,1254.2,1254.0,6.90140185]
[1672952891219,6.0867516,1254.2,1254.0,6.90140185]
[1672952891637,3.5867516,1254.2,1254.0,6.90140185]
[1672952892165,3.5867516,1254.3,1254.1,1.19360185]
[1672952892372,3.5867516,1254.3,1254.2,3.2078]
[1672952892583,6.0867516,1254.3,1254.2,3.2078]
[1672952892788,3.5867516,1254.3,1254.2,3.2078]
[1672952893525,3.5867516,1254.3,1254.0,13.46451125]
[1672952893734,6.0867516,1254.3,1254.2,3.2078]
[1672952893943,3.5867516,1254.3,1254.2,3.2078]
[1672952895421,3.5867516,1254.3,1254.0,13.46451125]
[1672952895620,3.5867516,1254.3,1254.2,3.2078]
[1672952896575,3.5867516,1254.3,1254.0,13.46451125]
[1672952896781,3.5867516,1254.3,1254.2,3.2078]
[1672952899511,6.0867516,1254.3,1254.2,3.2078]
[1672952900029,10.27138691,1254.3,1254.2,3.2078]
[1672952901304,7.77138691,1254.3,1254.2,3.2078]
[1672952901827,3.5867516,1254.3,1254.2,3.2078]
[1672952902981,7.77138691,1254.4,1254.3,2.5]
[1672952903305,10.27138691,1254.4,1254.3,2.5]
[1672952903610,7.77138691,1254.4,1254.3,2.5]
[1672952903929,3.5867516,1254.4,1254.3,2.5]
[1672952904139,6.0867516,1254.4,1254.3,2.5]
[1672952904354,10.27138691,1254.4,1254.3,2.5]
[1672952904772,3.5867516,1254.4,1254.3,2.5]
[1672952906451,6.0867516,1254.4,1254.2,3.2078]
[1672952906663,10.27138691,1254.4,1254.2,5.7078]
[1672952906976,3.5867516,1254.3,1254.2,5.7078]
[1672952907192,6.0867516,1254.3,1254.2,5.7078]
[1672952909290,3.5867516,1254.3,1254.2,5.7078]
[1672952915063,10.27138691,1254.4,1254.2,5.7078]
[1672952915484,6.0867516,1254.3,1254.2,5.7078]
[1672952916858,10.27138691,1254.4,1254.2,5.7078]
[1672952917280,3.5867516,1254.3,1254.2,5.7078]
[1672952917485,6.0867516,1254.3,1254.2,3.2078]
[1672952918327,2.5,1254.3,1254.2,3.2078]
[1672952918537,6.0867516,1254.3,1254.2,3.2078]
[1672952920321,6.0867516,1254.3,1254.1,1.19360185]
[1672952920534,6.0867516,1254.3,1254.2,3.2078]
[1672952923371,2.5,1254.3,1254.2,3.2078]
[1672952923897,6.0867516,1254.3,1254.2,3.2078]
[1672952925576,6.68463531,1254.3,1254.2,3.2078]
[1672952926213,10.26956595,1254.3,1254.2,3.2078]
[1672952927159,6.68463531,1254.3,1254.2,3.2078]
[1672952928200,6.68463531,1254.3,1254.1,1.19360185]
[1672952928407,6.68463531,1254.3,1254.2,3.2078]
[1672952928621,4.18463531,1254.3,1254.2,3.2078]
[1672952928832,7.77049376,1254.3,1254.2,3.2078]
[1672952929253,4.18463531,1254.3,1254.2,3.2078]
[1672952929464,4.18463531,1254.3,1254.1,1.19360185]
[1672952929682,4.18463531,1254.3,1254.2,3.2078]
[1672952931887,4.18463531,1254.3,1254.1,1.19360185]
[1672952932202,6.08745024,1254.2,1254.1,1.19360185]
[1672952932417,6.08745024,1254.2,1254.1,4.40140185]
[1672952933247,2.5,1254.2,1254.1,6.18831125]
[1672952933458,7.77208555,1254.3,1254.1,6.18831125]
[1672952933993,3.58745024,1254.2,1254.1,6.18831125]
[1672952934199,6.08745024,1254.2,1254.1,1.19360185]
[1672952934406,6.08745024,1254.2,1254.1,6.18831125]
[1672952934617,6.08745024,1254.2,1254.1,4.40140185]
[1672952936934,6.08745024,1254.2,1254.1,1.19360185]
[1672952937144,6.08745024,1254.2,1254.1,4.40140185]
[1672952937357,6.08745024,1254.2,1254.1,1.19360185]
[1672952937574,6.08745024,1254.2,1254.1,4.40140185]
[1672952939681,6.08745024,1254.2,1254.1,3.2078]
[1672952942093,3.58745024,1254.2,1254.1,3.2078]
[1672952942303,3.58745024,1254.2,1254.1,4.40140185]
[1672952944308,3.58745024,1254.2,1254.1,1.19360185]
[1672952944728,3.58745024,1254.2,1254.1,4.40140185]
[1672952951665,3.58745024,1254.2,1254.1,1.19360185]
[1672952951873,3.58745024,1254.2,1254.1,4.40140185]
[1672952952711,3.58745024,1254.2,1254.1,1.19360185]
[1672952953018,3.58745024,1254.2,1254.1,4.40140185]
[1672952954291,3.58745024,1254.2,1254.1,1.19360185]
[1672952954501,3.58745024,1254.2,1254.1,4.40140185]
[1672952955973,3.58745024,1254.2,1254.1,1.19360185]
[1672952956180,3.58745024,1254.2,1254.1,4.40140185]
[1672952957969,3.58745024,1254.2,1254.1,1.19360185]
[1672952958188,3.58745024,1254.2,1254.1,4.40140185]
[1672952959338,3.58745024,1254.2,1254.1,1.19360185]
[1672952959546,3.58745024,1254.2,1254.1,4.40140185]
[1672952960911,3.58745024,1254.2,1254.1,1.19360185]
[1672952961124,3.58745024,1254.2,1254.1,4.40140185]
[1672952962066,3.58745024,1254.2,1254.1,1.19360185]
[1672952962282,3.58745024,1254.2,1254.1,4.40140185]
[1672952962805,3.58745024,1254.2,1254.1,1.19360185]
[1672952963118,3.58745024,1254.2,1254.1,4.40140185]
[1672952966070,3.58745024,1254.2,1254.1,1.19360185]
[1672952966277,3.58745024,1254.2,1254.1,4.40140185]
[1672952968379,3.58745024,1254.2,1254.1,1.19360185]
[1672952968793,3.58745024,1254.2,1254.1,4.40140185]
[1672952971218,6.08745024,1254.2,1254.1,4.40140185]
[1672952975204,3.58745024,1254.2,1254.1,4.40140185]
[1672952976046,7.77208555,1254.2,1254.1,4.40140185]
[1672952976253,3.58745024,1254.2,1254.1,4.40140185]
[1672952976781,7.77208555,1254.2,1254.1,4.40140185]
[1672952976984,3.58745024,1254.2,1254.1,4.40140185]
[1672952978576,3.58745024,1254.2,1254.1,6.18831125]
[1672952980885,3.58745024,1254.3,1254.2,2.5]
[1672952981092,3.58745024,1254.3,1254.2,5.48263725]
[1672952981517,3.58745024,1254.3,1254.2,3.6930549]
[1672952981937,6.68463531,1254.4,1254.2,3.6930549]
[1672952981938,10.27208555,1254.4,1254.2,3.6930549]
[1672952982143,6.68463531,1254.4,1254.3,3.2078]
[1672952982671,7.77115063,1254.4,1254.3,3.2078]
[1672952984881,3.58651532,1254.4,1254.3,3.2078]
[1672952985612,7.77115063,1254.4,1254.3,3.2078]
[1672952986032,4.18463531,1254.4,1254.3,3.2078]
[1672952988874,7.76980052,1254.4,1254.3,3.2078]
[1672952989293,3.58516521,1254.4,1254.3,3.2078]
[1672952990229,3.58516521,1254.4,1254.3,3.20395496]
[1672952993389,3.58516521,1254.4,1254.3,3.2078]
[1672952995490,3.58516521,1254.4,1254.2,11.6770549]
[1672952995704,3.58516521,1254.4,1254.3,3.2078]
[1672953005579,4.18463531,1254.4,1254.3,3.2078]
[1672953009995,7.76853163,1254.4,1254.3,3.2078]
[1672953010195,4.18463531,1254.4,1254.3,3.2078]
[1672953010404,4.18463531,1254.4,1254.2,2.5]
[1672953010625,4.18463531,1254.4,1254.3,3.2078]
[1672953010831,7.76853265,1254.4,1254.3,3.2078]
[1672953012518,4.18463531,1254.4,1254.3,3.2078]
[1672953012831,7.76905589,1254.4,1254.3,3.2078]
[1672953013880,4.18463531,1254.4,1254.3,3.2078]
[1672953016091,4.18463531,1254.4,1254.2,2.5]
[1672953016304,6.08589858,1254.3,1254.2,5.7078]
[1672953019562,6.08589858,1254.3,1254.2,3.2078]
[1672953020294,6.08589858,1254.3,1254.2,5.7078]
[1672953020501,6.08589858,1254.3,1254.2,2.5]
[1672953020713,6.08589858,1254.3,1254.2,5.7078]
[1672953020919,6.08589858,1254.3,1254.2,2.5]
[1672953021127,6.08589858,1254.3,1254.2,5.7078]
[1672953022082,3.58589858,1254.3,1254.2,5.7078]
[1672953023448,3.58589858,1254.3,1254.2,2.5]
[1672953023773,3.58589858,1254.3,1254.2,5.7078]
[1672953025876,3.58589858,1254.3,1254.2,2.5]
[1672953026088,3.58589858,1254.3,1254.2,5.7078]
[1672953026503,3.58589858,1254.3,1254.2,2.5]
[1672953026923,3.58589858,1254.3,1254.2,5.7078]
[1672953027559,3.58589858,1254.3,1254.2,3.2078]
[1672953027769,6.08589858,1254.3,1254.2,5.7078]
[1672953027987,10.27053389,1254.3,1254.2,5.7078]
[1672953029450,10.27053389,1254.3,1254.2,3.2078]
[1672953029663,6.68463531,1254.3,1254.2,3.2078]
[1672953031331,8.43534253,1254.3,1254.2,3.2078]
[1672953032072,6.68463531,1254.3,1254.2,3.2078]
[1672953033752,2.5,1254.3,1254.0,4.4008549]
[1672953033964,3.58533838,1254.1,1254.0,3.2078]
[1672953034169,6.08533838,1254.1,1254.0,3.2078]
[1672953034594,6.68289478,1254.1,1254.0,3.2078]
[1672953035010,10.26850218,1254.1,1254.0,3.2078]
[1672953035751,6.0856074,1254.1,1254.0,3.2078]
[1672953037113,6.0856074,1254.1,1253.9,2.5]
[1672953037535,6.0856074,1254.1,1254.0,3.2078]
[1672953040585,6.0856074,1254.1,1253.9,2.5]
[1672953040794,6.0856074,1254.1,1254.0,3.2078]
[1672953045109,6.0856074,1254.1,1253.9,2.5]
[1672953045321,6.0856074,1254.1,1254.0,3.2078]
[1672953046163,6.0856074,1254.1,1253.9,2.5]
[1672953046376,6.0856074,1254.1,1253.9,5.7078]
[1672953049213,2.5,1254.1,1253.9,5.7078]
[1672953051633,2.5,1254.1,1254.0,3.2078]
[1672953051838,10.26850218,1254.2,1254.0,3.2078]
[1672953052264,6.0856074,1254.2,1254.0,3.2078]
[1672953052680,3.5856074,1254.1,1254.0,3.2078]
[1672953054464,3.5856074,1254.1,1253.9,2.5]
[1672953054681,3.5856074,1254.1,1254.0,3.2078]
[1672953055208,3.5856074,1254.1,1253.9,2.5]
[1672953055732,3.5856074,1254.1,1254.0,3.2078]
[1672953059831,3.5856074,1254.1,1254.0,3.20261844]
[1672953061195,3.5856074,1254.1,1253.9,2.5]
[1672953061513,3.5856074,1254.1,1254.0,3.2078]
[1672953063617,3.5856074,1254.1,1253.9,2.5]
[1672953063823,3.5856074,1254.1,1254.0,3.2078]
[1672953064667,3.5856074,1254.1,1253.9,2.5]
[1672953064982,3.5856074,1254.1,1254.0,3.2078]
[1672953067933,3.5856074,1254.1,1253.9,3.6930549]
[1672953068142,3.5856074,1254.1,1254.0,3.2078]
[1672953068870,3.5856074,1254.1,1253.9,3.6930549]
[1672953069080,3.5856074,1254.1,1254.0,3.2078]
[1672953070028,3.5856074,1254.1,1253.9,3.6930549]
[1672953070346,3.5856074,1254.1,1254.0,3.2078]
[1672953070969,3.5856074,1254.1,1253.9,3.6930549]
[1672953071389,3.5856074,1254.1,1254.0,3.2078]
[1672953071602,7.76850218,1254.1,1253.9,5.48263725]
[1672953071933,7.76850218,1254.1,1254.0,3.2078]
[1672953072988,4.18289478,1254.1,1254.0,3.2078]
[1672953076130,5.933602,1254.1,1254.0,3.2078]
[1672953076862,4.18289478,1254.1,1254.0,3.2078]
[1672953077701,4.18289478,1254.1,1254.0,4.4008549]
[1672953077917,4.18289478,1254.1,1254.0,3.2078]
[1672953079176,4.18289478,1254.1,1253.9,6.9008549]
[1672953079387,3.58942699,1254.0,1253.9,6.9008549]
[1672953079600,6.08942699,1254.0,1253.9,8.69043725]
[1672953080546,6.08942699,1254.0,1253.9,5.48263725]
[1672953080761,6.08942699,1254.0,1253.9,8.69043725]
[1672953081065,6.08942699,1254.0,1253.9,5.48263725]
[1672953081283,6.08942699,1254.0,1253.9,8.69043725]
[1672953081807,6.08942699,1254.0,1253.9,6.9008549]
[1672953082437,6.08942699,1254.0,1253.9,3.6930549]
[1672953082750,6.08942699,1254.0,1253.9,6.9008549]
[1672953083913,6.08942699,1254.0,1253.9,3.6930549]
[1672953084124,6.08942699,1254.0,1253.9,6.9008549]
[1672953084753,3.58942699,1254.0,1253.9,6.9008549]
[1672953085383,3.58942699,1254.0,1253.9,8.69043725]
[1672953086742,3.58942699,1254.0,1253.9,5.48263725]
[1672953086955,3.58942699,1254.0,1253.9,8.69043725]
[1672953088014,3.58942699,1254.0,1253.9,5.48263725]
[1672953088224,3.58942699,1254.0,1253.9,8.69043725]
[1672953088855,3.58942699,1254.0,1253.9,5.48263725]
[1672953089168,3.58942699,1254.0,1253.9,8.69043725]
[1672953089794,3.58144504,1254.0,1253.9,8.69043725]
[1672953092952,4.18289478,1254.1,1253.9,7.49738235]
[1672953093156,4.18289478,1254.1,1254.0,1.19355203]
[1672953093366,2.5,1254.0,1253.9,4.40135203]
[1672953096107,2.5,1254.0,1253.9,1.19355203]
[1672953096426,2.5,1254.0,1253.9,4.40135203]
[1672953102306,2.5,1254.0,1253.9,1.19355203]
[1672953102621,2.5,1254.0,1253.9,4.40135203]
[1672953103252,4.18289478,1254.1,1253.9,4.40135203]
[1672953104300,4.18289478,1254.1,1253.9,1.19355203]
[1672953104511,4.18289478,1254.1,1253.9,4.40135203]
[1672953104826,3.58851554,1254.0,1253.9,4.40135203]
[1672953105037,6.08851554,1254.0,1253.9,1.19355203]
[1672953105246,6.08851554,1254.0,1253.9,4.40135203]
[1672953106825,6.08851554,1254.0,1253.9,1.19355203]
[1672953107036,6.08851554,1254.0,1253.9,4.40135203]
[1672953108824,6.08851554,1254.0,1253.9,3.2078]
[1672953109557,10.27141032,1254.0,1253.9,3.2078]
[1672953110498,6.08851554,1254.0,1253.9,3.2078]
[1672953110713,6.08851554,1254.0,1253.9,4.40135203]
[1672953111445,3.58851554,1254.0,1253.9,4.40135203]
[1672953113129,3.58851554,1254.0,1253.9,1.19355203]
[1672953113343,3.58851554,1254.0,1253.9,4.40135203]
[1672953113861,3.58851554,1254.1,1253.9,6.19093438]
[1672953115118,3.58851554,1254.1,1253.9,2.98313438]
[1672953115538,3.58851554,1254.1,1254.0,3.2078]
[1672953115753,3.58851554,1254.1,1254.0,5.7078]
[1672953116278,7.77141032,1254.1,1254.0,5.7078]
[1672953116477,3.58851554,1254.1,1254.0,5.7078]
[1672953116902,7.77141032,1254.1,1254.0,5.7078]
[1672953117121,3.58851554,1254.1,1254.0,5.7078]
[1672953119330,3.58851554,1254.1,1254.0,3.2078]
[1672953119643,7.77141032,1254.1,1254.0,3.2078]
[1672953120169,7.77141032,1254.1,1254.0,5.7078]
[1672953120482,3.58851554,1254.1,1254.0,5.7078]
[1672953121211,7.77141032,1254.1,1254.0,5.7078]
[1672953121422,3.58851554,1254.1,1254.0,5.7078]
[1672953122164,7.77141032,1254.1,1254.0,5.7078]
[1672953122375,3.58851554,1254.1,1254.0,5.7078]
[1672953122589,3.58851554,1254.1,1254.0,6.90135203]
[1672953122995,3.58851554,1254.2,1254.0,8.69093438]
[1672953123425,3.58851554,1254.2,1254.1,1.19355203]
[1672953123641,3.58851554,1254.2,1254.1,2.69355203]
[1672953125107,4.18289478,1254.3,1254.1,2.69355203]
[1672953125108,6.08851554,1254.3,1254.1,2.69355203]
[1672953125320,6.08851554,1254.3,1254.2,5.7078]
[1672953126053,7.77141032,1254.3,1254.2,5.7078]
[1672953126259,10.27141032,1254.3,1254.2,5.7078]
[1672953126993,6.08851554,1254.3,1254.2,5.7078]
[1672953127623,3.58851554,1254.3,1254.2,5.7078]
[1672953127836,6.08851554,1254.3,1254.2,5.7078]
[1672953128260,7.77141032,1254.3,1254.2,2.5]
[1672953128475,10.27141032,1254.3,1254.2,5.7078]
[1672953128683,10.27141032,1254.3,1254.2,2.5]
[1672953128896,10.27141032,1254.3,1254.2,3.2078]
[1672953129108,6.08851554,1254.3,1254.2,3.2078]
[1672953129529,3.58851554,1254.3,1254.2,3.2078]
[1672953130053,6.08851554,1254.3,1254.2,3.2078]
[1672953130999,3.58851554,1254.3,1254.2,3.2078]
[1672953131423,6.08851554,1254.3,1254.2,3.2078]
[1672953136785,6.08851554,1254.3,1254.1,1.5]
[1672953136993,6.08851554,1254.3,1254.2,3.2078]
[1672953137205,6.08851554,1254.3,1254.1,1.5]
[1672953137415,6.08851554,1254.3,1254.2,3.2078]
[1672953138778,3.58851554,1254.3,1254.2,3.2078]
[1672953138993,6.08851554,1254.3,1254.2,3.2078]
[1672953141830,6.08851554,1254.3,1254.1,1.5]
[1672953142352,6.08851554,1254.3,1254.2,3.2078]
[1672953144147,3.58851554,1254.3,1254.2,3.2078]
[1672953144884,6.08851554,1254.3,1254.2,3.2078]
[1672953146455,3.58851554,1254.3,1254.2,3.2078]
[1672953146666,3.58851554,1254.3,1254.1,1.5]
[1672953146878,6.08851554,1254.3,1254.2,3.2078]
[1672953147303,10.27141032,1254.3,1254.2,3.2078]
[1672953148463,6.68289478,1254.3,1254.2,3.2078]
[1672953148874,7.76578465,1254.3,1254.2,3.2078]
[1672953149084,3.58288987,1254.3,1254.2,3.2078]
[1672953150875,6.08288987,1254.3,1254.2,3.2078]
[1672953151088,3.58288987,1254.3,1254.1,1.5]
[1672953151300,6.08288987,1254.3,1254.2,3.2078]
[1672953151612,3.58288987,1254.3,1254.2,3.2078]
[1672953152139,7.76578465,1254.3,1254.2,3.2078]
[1672953153396,7.76578465,1254.3,1254.1,1.5]
[1672953153603,10.26578465,1254.3,1254.2,3.2078]
[1672953153815,7.76578465,1254.3,1254.2,3.2078]
[1672953154233,10.26578465,1254.3,1254.1,2.69355203]
[1672953154981,10.26578465,1254.3,1254.2,3.2078]
[1672953155191,7.76578465,1254.3,1254.2,3.2078]
[1672953156138,6.68289478,1254.3,1254.2,3.2078]
[1672953156348,4.18289478,1254.3,1254.2,3.2078]
[1672953156660,6.68289478,1254.3,1254.2,3.2078]
[1672953156875,4.18289478,1254.3,1254.2,3.2078]
[1672953157500,6.68289478,1254.3,1254.2,3.2078]
[1672953160444,4.18289478,1254.3,1254.2,3.2078]
[1672953161079,6.68289478,1254.3,1254.2,3.2078]
[1672953161919,4.18289478,1254.3,1254.2,3.2078]
[1672953162435,6.68289478,1254.3,1254.2,3.2078]
[1672953162968,8.433602,1254.3,1254.2,3.2078]
[1672953163704,6.68289478,1254.3,1254.2,3.2078]
[1672953164331,4.18289478,1254.3,1254.2,3.2078]
[1672953164543,6.68289478,1254.3,1254.2,3.2078]
[1672953165068,4.18289478,1254.3,1254.2,3.2078]
[1672953165281,6.68289478,1254.3,1254.2,3.2078]
[1672953165493,8.433602,1254.3,1254.2,3.2078]
[1672953166014,6.68289478,1254.3,1254.2,3.2078]
[1672953167074,4.18289478,1254.3,1254.2,3.2078]
[1672953168862,6.68289478,1254.3,1254.2,3.2078]
[1672953169489,4.18289478,1254.3,1254.2,3.2078]
[1672953170112,6.68289478,1254.3,1254.2,3.2078]
[1672953170328,4.18289478,1254.3,1254.2,3.2078]
[1672953170539,6.68289478,1254.3,1254.2,3.2078]
[1672953171483,4.18289478,1254.3,1254.2,3.2078]
[1672953174329,4.18289478,1254.3,1254.1,4.48313438]
[1672953174542,6.68289478,1254.3,1254.2,3.2078]
[1672953174746,4.18289478,1254.3,1254.2,3.2078]
[1672953175693,6.68289478,1254.3,1254.2,3.2078]
[1672953175904,4.18289478,1254.3,1254.2,3.2078]
[1672953176113,6.68289478,1254.3,1254.2,3.2078]